bitfinex-derivatives/quotes_BNBF0:USTF0_20250128
["timestamp","ask_amount","ask_price","bid_price","bid_amount"]
[1738057402699,0.272199,675.46,674.5,0.29651593]
[1738057402903,0.272199,675.45,674.5,0.29651593]
[1738057403103,0.272199,675.44,674.5,0.29651593]
[1738057403402,0.272199,675.43,674.5,0.29651593]
[1738057403599,0.272199,675.42,674.5,0.29651593]
[1738057403802,1.10978108,675.43,674.5,0.29651593]
[1738057404004,0.27223969,675.42,674.5,0.29651593]
[1738057405597,0.27224068,675.41,674.5,0.29651593]
[1738057405802,0.27224068,675.4,674.5,0.29651593]
[1738057406003,0.27224068,675.42,674.5,0.29651593]
[1738057406204,0.27224068,675.41,674.5,0.29651593]
[1738057406404,0.27224068,675.4,674.5,0.29651593]
[1738057406607,0.27224068,675.39,674.5,0.29651593]
[1738057406807,0.27224068,675.38,674.5,0.29651593]
[1738057407008,0.27224068,675.37,674.5,0.29651593]
[1738057407203,0.27224068,675.44,674.5,0.29651593]
[1738057407403,0.27224068,675.43,674.5,0.29651593]
[1738057407706,0.27224068,675.42,674.5,0.29651593]
[1738057407904,0.27224068,675.44,674.5,0.29651593]
[1738057408110,0.27224068,675.43,674.5,0.29651593]
[1738057408307,0.27224068,675.44,674.5,0.29651593]
[1738057408504,0.27224068,675.43,674.5,0.29651593]
[1738057408706,1.10978108,675.45,674.5,0.29651593]
[1738057408903,0.27225841,675.44,674.5,0.29651593]
[1738057409210,0.27226598,675.43,674.5,0.29651593]
[1738057409706,0.27226598,675.42,674.5,0.29651593]
[1738057409912,0.27226598,675.41,674.5,0.29651593]
[1738057410110,0.27226598,675.4,674.5,0.29651593]
[1738057410311,0.27226598,675.39,674.5,0.29651593]
[1738057410510,0.27226598,675.38,674.5,0.29651593]
[1738057410710,1.10978108,675.44,674.5,0.29651593]
[1738057410911,0.2722707,675.43,674.5,0.29651593]
[1738057412713,1.10978108,675.35,674.5,0.29651593]
[1738057412906,0.2722707,675.34,674.5,0.29651593]
[1738057416711,0.2722707,675.41,674.5,0.29651593]
[1738057416911,0.2722707,675.4,674.5,0.29651593]
[1738057417212,0.2722707,675.39,674.5,0.29651593]
[1738057417414,0.2722707,675.38,674.5,0.29651593]
[1738057417614,0.2722707,675.37,674.5,0.29651593]
[1738057417807,0.2722707,675.36,674.5,0.29651593]
[1738057418010,0.2722707,675.35,674.5,0.29651593]
[1738057418213,0.2722707,675.41,674.5,0.29651593]
[1738057419408,0.2722707,675.43,674.5,0.29651593]
[1738057419610,0.2722707,675.42,674.5,0.29651593]
[1738057419815,0.2722707,675.41,674.5,0.29651593]
[1738057420114,0.2722707,675.4,674.5,0.29651593]
[1738057420315,0.2722707,675.43,674.5,0.29651593]
[1738057420516,0.2722707,675.42,674.5,0.29651593]
[1738057420719,0.2722707,675.43,674.5,0.29651593]
[1738057421017,0.2722707,675.42,674.5,0.29651593]
[1738057421216,0.2722707,675.43,674.5,0.29651593]
[1738057421411,0.2722707,675.42,674.5,0.29651593]
[1738057421612,0.2722707,675.43,674.5,0.29651593]
[1738057421812,0.2722707,675.42,674.5,0.29651593]
[1738057422014,0.2722707,675.43,674.5,0.29651593]
[1738057422215,0.2722707,675.42,674.5,0.29651593]
[1738057422415,0.2722707,675.43,674.5,0.29651593]
[1738057422616,1.10978108,675.46,674.5,0.29651593]
[1738057422816,0.27230376,675.45,674.5,0.29651593]
[1738057424419,0.27230146,675.44,674.5,0.29651593]
[1738057424619,0.27230146,675.43,674.5,0.29651593]
[1738057424918,0.27230146,675.42,674.5,0.29651593]
[1738057425111,0.27230146,675.45,674.5,0.29651593]
[1738057425316,0.27230146,675.44,674.5,0.29651593]
[1738057425517,0.27230146,675.43,674.5,0.29651593]
[1738057425717,0.27230146,675.45,674.5,0.29651593]
[1738057426013,0.27230146,675.44,674.5,0.29651593]
[1738057426216,0.27230146,675.43,674.5,0.29651593]
[1738057426414,0.27230146,675.46,674.5,0.29651593]
[1738057426619,0.27230146,675.45,674.5,0.29651593]
[1738057426816,0.27230146,675.46,674.5,0.29651593]
[1738057428321,0.27230146,675.45,674.5,0.29651593]
[1738057428519,0.27230146,675.44,674.5,0.29651593]
[1738057428717,0.27230146,675.46,674.5,0.29651593]
[1738057428923,0.27230146,675.45,674.5,0.29651593]
[1738057429115,0.27230146,675.44,674.5,0.29651593]
[1738057429424,1.10978108,675.38,674.5,0.29651593]
[1738057429616,0.27230146,675.37,674.5,0.29651593]
[1738057431123,0.27231208,675.36,674.5,0.29651593]
[1738057431318,0.27231208,675.37,674.5,0.29651593]
[1738057432719,1.10978108,675.35,674.5,0.29651593]
[1738057432917,0.27231208,675.34,674.5,0.29651593]
[1738057434723,0.27234866,675.33,674.5,0.29651593]
[1738057434918,0.27234866,675.32,674.5,0.29651593]
[1738057435123,0.27234866,675.31,674.5,0.29651593]
[1738057435326,0.27234866,675.3,674.5,0.29651593]
[1738057435518,0.27234866,675.34,674.19,1.10978108]
[1738057435721,0.27234866,675.33,674.19,1.10978108]
[1738057435920,0.27234866,675.32,674.19,1.10978108]
[1738057436119,0.27234866,675.34,674.0,1.10978108]
[1738057436319,0.27234866,675.33,674.01,0.2967315]
[1738057436627,0.27234866,675.32,674.01,0.2967315]
[1738057436822,0.27234866,675.31,674.01,0.2967315]
[1738057437019,0.27234866,675.3,674.01,0.2967315]
[1738057437224,0.27234866,675.29,674.01,0.2967315]
[1738057437426,0.27234866,675.35,674.01,0.2967315]
[1738057437626,0.27234866,675.34,674.01,0.2967315]
[1738057437826,0.27234866,675.35,674.01,0.2967315]
[1738057438125,0.27234866,675.34,674.01,0.2967315]
[1738057438327,0.27234866,675.35,674.02,1.54711934]
[1738057438530,0.27234866,675.34,674.03,0.29672269]
[1738057438829,0.27234866,675.33,674.03,0.29672269]
[1738057441324,1.10978108,675.34,674.03,0.29672269]
[1738057441523,0.27235801,675.33,674.03,0.29672269]
[1738057441930,1.10978108,675.31,674.03,0.29672269]
[1738057442227,0.27235801,675.3,674.03,0.29672269]
[1738057442628,1.10978108,675.31,674.03,0.29672269]
[1738057442824,0.27235786,675.3,674.03,0.29672269]
[1738057445334,1.10978108,675.23,674.07,1.10978108]
[1738057445534,0.27235786,675.22,674.08,0.29670068]
[1738057449136,1.38213894,675.22,674.08,0.29670068]
[1738057449329,0.27235786,675.21,674.08,0.29670068]
[1738057452036,0.27235786,675.27,674.08,0.29670068]
[1738057452237,0.27235786,675.26,674.08,0.29670068]
[1738057452433,0.27235786,675.27,674.08,0.29670068]
[1738057455439,1.10978108,675.28,674.08,0.29670068]
[1738057455631,0.27237054,675.27,674.08,0.29670068]
[1738057457029,0.27237054,675.26,674.08,0.29670068]
[1738057457234,1.10978108,675.31,674.08,0.29670068]
[1738057457235,0.27237054,675.3,674.08,0.29670068]
[1738057457435,0.27237054,675.29,674.08,0.29670068]
[1738057457631,0.27237054,675.28,674.08,0.29670068]
[1738057457832,0.27237054,675.27,674.08,0.29670068]
[1738057458033,0.27237054,675.26,674.08,0.29670068]
[1738057458233,0.27237054,675.25,674.08,0.29670068]
[1738057458432,0.27237054,675.24,674.08,0.29670068]
[1738057458635,0.27237054,675.3,674.08,0.29670068]
[1738057458833,1.10978108,675.31,674.08,0.29670068]
[1738057459036,0.27236958,675.3,674.08,0.29670068]
[1738057459941,1.10978108,675.26,674.08,0.29670068]
[1738057460142,0.27236958,675.25,674.08,0.29670068]
[1738057460838,0.27236954,675.24,674.08,0.29670068]
[1738057461039,0.27236954,675.25,674.08,0.29670068]
[1738057461242,0.27236954,675.24,674.08,0.29670068]
[1738057461442,0.27236954,675.23,674.08,0.29670068]
[1738057461643,0.27236954,675.22,674.08,0.29670068]
[1738057461843,0.27236954,675.25,674.08,0.29670068]
[1738057462048,0.27236954,675.24,674.08,0.29670068]
[1738057462343,0.27236954,675.23,674.08,0.29670068]
[1738057462544,0.2723703,675.22,674.08,0.29670068]
[1738057462741,0.2723703,675.25,674.08,0.29670068]
[1738057462945,0.2723703,675.24,674.08,0.29670068]
[1738057463141,0.2723703,675.25,674.08,0.29670068]
[1738057463347,1.10978108,675.19,674.08,0.29670068]
[1738057463546,0.2723703,675.18,674.08,0.29670068]
[1738057464246,1.10978108,675.19,674.08,0.29670068]
[1738057464447,0.27236697,675.18,674.08,0.29670068]
[1738057466548,1.10978108,675.08,674.13,1.10978108]
[1738057466847,0.27236697,675.07,674.13,1.10978108]
[1738057469348,1.10978108,675.08,674.13,1.10978108]
[1738057469543,0.27237736,675.06,674.13,1.10978108]
[1738057469746,0.27237736,675.05,674.13,1.10978108]
[1738057469947,0.27237736,675.04,674.13,1.10978108]
[1738057470148,0.27237736,675.07,674.13,1.10978108]
[1738057470347,0.27237736,675.06,674.13,1.10978108]
[1738057470549,0.27237736,675.05,674.16,1.10978108]
[1738057473751,0.27237736,675.05,674.18,1.10978108]
[1738057473752,1.10978108,675.03,674.18,1.10978108]
[1738057473953,0.27237736,675.02,674.18,1.10978108]
[1738057476246,1.10978108,675.03,674.18,1.10978108]
[1738057476449,0.27236964,675.02,674.18,1.10978108]
[1738057479754,0.27236964,675.02,674.2,1.10978108]
[1738057479955,0.27236964,675.01,674.2,1.10978108]
[1738057480158,0.27236964,675.0,674.2,1.10978108]
[1738057480355,0.27236964,674.99,674.2,1.10978108]
[1738057480556,0.27236964,674.98,674.2,1.10978108]
[1738057480757,0.27236964,675.03,674.2,1.10978108]
[1738057480955,0.27236964,675.02,674.2,1.10978108]
[1738057481151,1.10978108,675.04,674.2,1.10978108]
[1738057481355,0.27236816,675.03,674.2,1.10978108]
[1738057481559,1.10978108,675.04,674.2,1.10978108]
[1738057481751,0.27237439,675.03,674.2,1.10978108]
[1738057482261,1.38215547,675.03,674.21,1.10978108]
[1738057482454,0.27237439,675.02,674.21,1.10978108]
[1738057483358,1.10978108,675.03,674.21,1.10978108]
[1738057483557,0.27237984,675.02,674.21,1.10978108]
[1738057485359,1.10978108,675.01,674.19,1.10978108]
[1738057485553,0.27237984,675.0,674.19,1.10978108]
[1738057487568,1.10978108,675.01,674.19,1.10978108]
[1738057487865,0.27238516,675.0,674.19,1.10978108]
[1738057488263,1.10978108,674.98,674.19,1.10978108]
[1738057488461,0.27238516,674.97,674.19,1.10978108]
[1738057491564,1.38216624,674.97,674.19,1.10978108]
[1738057491767,0.27238516,674.96,674.19,1.10978108]
[1738057492167,1.10978108,674.97,674.19,1.10978108]
[1738057492369,0.27238092,674.96,674.19,1.10978108]
[1738057494070,0.27238092,674.96,674.2,1.10978108]
[1738057494364,0.27238092,674.95,674.2,1.10978108]
[1738057494569,0.27238092,674.98,674.2,1.10978108]
[1738057494765,0.27238092,674.97,674.2,1.10978108]
[1738057494967,0.27238092,674.98,674.2,1.10978108]
[1738057495267,0.27238092,674.97,674.2,1.10978108]
[1738057495468,0.27238092,674.96,674.2,1.10978108]
[1738057495663,0.27238092,674.98,674.2,1.10978108]
[1738057495968,0.27238092,674.97,674.2,1.10978108]
[1738057496168,0.27238092,674.98,674.2,1.10978108]
[1738057496371,0.27238092,674.97,674.2,1.10978108]
[1738057496569,0.27238092,674.96,674.2,1.10978108]
[1738057496770,0.27238092,674.95,674.2,1.10978108]
[1738057497070,1.10978108,674.99,674.2,1.10978108]
[1738057497071,0.27238092,674.94,674.2,1.10978108]
[1738057497265,0.27238092,674.98,674.2,1.10978108]
[1738057497467,0.27238092,674.93,674.2,1.10978108]
[1738057497668,1.10978108,674.99,674.2,1.10978108]
[1738057497669,0.27238092,674.92,674.2,1.10978108]
[1738057497869,0.27238092,674.91,674.2,1.10978108]
[1738057498171,1.10978108,674.99,674.2,1.10978108]
[1738057498371,0.27238544,674.98,674.2,1.10978108]
[1738057498571,1.10978108,674.97,674.19,1.10978108]
[1738057498873,0.27238544,674.96,674.19,1.10978108]
[1738057501667,0.27238544,674.96,674.22,1.10978108]
[1738057501969,0.27238544,674.95,674.22,1.10978108]
[1738057502271,1.10978108,675.01,674.22,1.10978108]
[1738057502471,0.27237396,675.0,674.22,1.10978108]
[1738057502873,1.10978108,675.01,674.22,1.10978108]
[1738057504074,0.27237604,675.0,674.22,1.10978108]
[1738057505370,1.10978108,675.01,674.22,1.10978108]
[1738057507474,0.54469225,681.08,674.08,0.29670068]
[1738057507475,1.10978108,675.41,674.08,0.29670068]
[1738057507675,0.27232178,675.4,674.08,0.29670068]
[1738057508775,1.10978108,675.41,674.08,0.29670068]
[1738057509877,1.10978108,675.47,674.08,0.29670068]
[1738057510176,0.27230838,675.46,674.08,0.29670068]
[1738057510378,1.10978108,675.47,674.08,0.29670068]
[1738057510578,0.27230758,675.46,674.08,0.29670068]
[1738057512476,1.10978108,675.47,674.08,0.29670068]
[1738057512676,0.27231266,675.46,674.08,0.29670068]
[1738057513179,0.27231266,675.45,674.08,0.29670068]
[1738057513480,1.10978108,675.48,674.08,0.29670068]
[1738057513672,0.27231208,675.47,674.08,0.29670068]
[1738057514479,1.10978108,675.48,674.08,0.29670068]
[1738057514881,0.2723035,675.47,674.08,0.29670068]
[1738057515881,1.40580547,675.62,674.08,0.29670068]
[1738057516081,0.27230566,675.61,674.08,0.29670068]
[1738057532199,1.10978108,675.37,674.22,1.10978108]
[1738057532499,1.10978108,675.37,674.23,0.29663467]
[1738057535300,0.27230566,675.36,674.24,1.10978108]
[1738057535494,0.27230566,675.37,674.24,1.10978108]
[1738057535696,0.27230566,675.36,674.24,1.10978108]
[1738057535891,0.27230566,675.35,674.24,1.10978108]
[1738057536097,0.27230566,675.34,674.24,1.10978108]
[1738057536297,0.27230566,675.33,674.24,1.10978108]
[1738057536499,0.27230566,675.37,674.24,1.10978108]
[1738057536700,0.27230566,675.36,674.24,1.10978108]
[1738057536901,0.27230566,675.35,674.24,1.10978108]
[1738057537102,0.27230566,675.34,674.24,1.10978108]
[1738057537301,0.27230566,675.33,674.24,1.10978108]
[1738057537501,0.27230566,675.37,674.24,1.10978108]
[1738057537697,0.27230566,675.36,674.24,1.10978108]
[1738057537900,0.27229825,675.35,674.24,1.10978108]
[1738057538100,0.27229825,675.37,674.24,1.10978108]
[1738057538297,0.27229825,675.36,674.24,1.10978108]
[1738057538497,2.65664254,675.57,674.23,0.29663467]
[1738057538498,1.10978108,675.33,674.28,1.10978108]
[1738057538703,0.27229825,675.32,674.28,1.10978108]
[1738057539702,0.27229845,675.31,674.28,1.10978108]
[1738057539899,0.27229845,675.3,674.28,1.10978108]
[1738057540102,0.27229845,675.29,674.28,1.10978108]
[1738057540298,0.27229845,675.28,674.28,1.10978108]
[1738057540499,0.27229845,675.27,674.28,1.10978108]
[1738057540804,0.27229845,675.26,674.33,1.10978108]
[1738057541001,0.27229845,675.27,674.33,1.10978108]
[1738057541205,0.27229706,675.26,674.33,1.10978108]
[1738057541404,0.27229773,675.25,674.33,1.10978108]
[1738057541606,1.10978108,675.28,674.33,1.10978108]
[1738057541803,0.272297,675.27,674.33,1.10978108]
[1738057542807,1.10978108,675.28,674.33,1.10978108]
[1738057543808,1.10978108,675.3,674.32,1.10978108]
[1738057546908,1.10978108,675.3,674.23,0.29663467]
[1738057547109,1.10978108,675.41,674.23,0.29663467]
[1738057547409,0.27229705,675.4,674.23,0.29663467]
[1738057548902,1.10978108,675.41,674.23,0.29663467]
[1738057549911,1.10978108,675.39,674.23,0.29663467]
[1738057552713,1.10978108,675.47,674.23,0.29663467]
[1738057556417,1.10978108,675.59,674.23,0.29663467]
[1738057557115,0.2722814,675.58,674.23,0.29663467]
[1738057557512,1.10978108,675.59,674.23,0.29663467]
[1738057558710,0.27228208,675.58,674.23,0.29663467]
[1738057559415,1.38206316,675.58,674.23,0.29663467]
[1738057559617,0.27228208,675.57,674.23,0.29663467]
[1738057561918,0.27228707,675.56,674.23,0.29663467]
[1738057562117,1.10978108,675.53,674.23,0.29663467]
[1738057562313,0.27228707,675.52,674.23,0.29663467]
[1738057564215,1.10978108,675.53,674.23,0.29663467]
[1738057564619,1.10978108,675.34,674.3,1.10978108]
[1738057565118,0.27228553,675.33,674.3,1.10978108]
[1738057565911,1.10978108,675.34,674.3,1.10978108]
[1738057567624,1.10978108,675.49,674.23,0.29663467]
[1738057567819,0.27228248,675.48,674.23,0.29663467]
[1738057568318,1.10978108,675.49,674.23,0.29663467]
[1738057569219,0.27228742,675.48,674.23,0.29663467]
[1738057569919,1.10978108,675.49,674.23,0.29663467]
[1738057570320,0.27228474,675.48,674.23,0.29663467]
[1738057572621,1.10978108,675.49,674.23,0.29663467]
[1738057572822,0.27228485,675.48,674.23,0.29663467]
[1738057573827,1.38206593,675.48,674.23,0.29663467]
[1738057574026,1.10978108,675.48,674.23,0.29663467]
[1738057574525,0.27228769,675.47,674.23,0.29663467]
[1738057576024,0.27228682,675.46,674.23,0.29663467]
[1738057576218,0.27228682,675.45,674.23,0.29663467]
[1738057576424,0.27228682,675.44,674.23,0.29663467]
[1738057576621,0.27228682,675.43,674.23,0.29663467]
[1738057576821,0.27228682,675.46,674.23,0.29663467]
[1738057577028,0.27228682,675.45,674.23,0.29663467]
[1738057577225,0.27228682,675.46,674.23,0.29663467]
[1738057577425,0.27228682,675.45,674.23,0.29663467]
[1738057577621,1.10978108,675.47,674.23,0.29663467]
[1738057577827,0.27228699,675.46,674.23,0.29663467]
[1738057579827,1.10978108,675.29,674.38,1.10978108]
[1738057580027,0.27228699,675.28,674.38,1.10978108]
[1738057581131,1.10978108,675.29,674.38,1.10978108]
[1738057581330,0.27227701,675.28,674.38,1.10978108]
[1738057582630,0.27227701,675.28,674.41,1.10978108]
[1738057583125,1.10978108,675.29,674.41,1.10978108]
[1738057585332,1.10978108,675.42,674.23,0.29663467]
[1738057585632,0.27231764,675.41,674.23,0.29663467]
[1738057586331,1.10978108,675.42,674.23,0.29663467]
[1738057586533,0.27231909,675.41,674.23,0.29663467]
[1738057588333,1.38210017,675.41,674.23,0.29663467]
[1738057588532,0.27231909,675.4,674.23,0.29663467]
[1738057591030,1.10978108,675.33,674.23,0.29663467]
[1738057591230,0.27231909,675.32,674.23,0.29663467]
[1738057591433,1.10978108,675.33,674.23,0.29663467]
[1738057591633,0.27233744,675.32,674.23,0.29663467]
[1738057594137,1.38211852,675.32,674.23,0.29663467]
[1738057594331,0.27233744,675.31,674.23,0.29663467]
[1738057597139,1.38211852,675.31,674.23,0.29663467]
[1738057597340,0.27233744,675.3,674.23,0.29663467]
[1738057601641,0.27233744,675.3,674.12,1.10978108]
[1738057602041,1.10978108,675.22,673.95,1.10978108]
[1738057602242,0.27233744,675.21,673.95,1.10978108]
[1738057603741,0.27246404,675.2,673.95,1.10978108]
[1738057603939,0.27246404,675.19,673.95,1.10978108]
[1738057604139,0.27246404,675.18,673.95,1.10978108]
[1738057604340,0.27246404,675.21,673.95,1.10978108]
[1738057604538,0.27246404,675.2,673.95,1.10978108]
[1738057604742,0.29621291,675.19,673.95,1.10978108]
[1738057604934,0.27246404,675.18,673.95,1.10978108]
[1738057605742,1.54761243,675.17,673.95,1.10978108]
[1738057606042,0.27246404,675.16,673.95,1.10978108]
[1738057606437,0.27246404,675.16,673.64,1.10978108]
[1738057606438,0.27246404,675.16,673.5,1.10978108]
[1738057606840,0.27246404,675.16,673.52,0.29694738]
[1738057608738,1.54761243,675.17,673.52,0.29694738]
[1738057608944,0.2724754,675.16,673.52,0.29694738]
[1738057610548,0.27247944,675.15,673.52,0.29694738]
[1738057610745,1.54761243,675.17,673.52,0.29694738]
[1738057610746,0.27247944,675.16,673.52,0.29694738]
[1738057611048,0.27247944,675.15,673.52,0.29694738]
[1738057611346,0.27247944,675.14,673.52,0.29694738]
[1738057611541,0.27247944,675.16,673.52,0.29694738]
[1738057611741,1.54761243,675.17,673.52,0.29694738]
[1738057611742,0.27247944,675.15,673.52,0.29694738]
[1738057611941,0.27247944,675.16,673.52,0.29694738]
[1738057612147,1.54761243,675.17,673.52,0.29694738]
[1738057612449,0.27247922,675.16,673.52,0.29694738]
[1738057612649,0.27247771,675.15,673.52,0.29694738]
[1738057612845,0.27247771,675.14,673.52,0.29694738]
[1738057613046,0.27247771,675.16,673.52,0.29694738]
[1738057613248,0.27247771,675.15,673.52,0.29694738]
[1738057613448,1.54761243,675.17,673.52,0.29694738]
[1738057613449,0.27247771,675.14,673.52,0.29694738]
[1738057613649,0.27247771,675.16,673.52,0.29694738]
[1738057613849,0.27247771,675.15,673.52,0.29694738]
[1738057614043,0.27248041,675.14,673.52,0.29694738]
[1738057614244,0.27248041,675.13,673.52,0.29694738]
[1738057614447,0.29624363,675.12,673.52,0.29694738]
[1738057614648,0.27248041,675.11,673.52,0.29694738]
[1738057615753,0.56876291,675.1,673.52,0.29694738]
[1738057615948,0.5687673,675.09,673.52,0.29694738]
[1738057616145,0.27251051,675.08,673.52,0.29694738]
[1738057616349,0.56877169,675.08,673.52,0.29694738]
[1738057616550,0.27251051,675.07,673.52,0.29694738]
[1738057617350,0.56877608,675.07,673.52,0.29694738]
[1738057617552,0.27251051,675.06,673.52,0.29694738]
[1738057620256,0.29626557,675.07,673.52,0.29694738]
[1738057620555,0.27251163,675.05,673.52,0.29694738]
[1738057620955,0.29626557,675.07,673.52,0.29694738]
[1738057621151,0.27251071,675.06,673.52,0.29694738]
[1738057622556,0.29626557,675.07,673.52,0.29694738]
[1738057622750,0.27251127,675.06,673.52,0.29694738]
[1738057624256,0.29626557,675.07,673.52,0.29694738]
[1738057624456,0.27251011,675.06,673.52,0.29694738]
[1738057624658,0.27251011,675.05,673.52,0.29694738]
[1738057624858,0.29626557,675.07,673.52,0.29694738]
[1738057625060,0.27251173,675.04,673.52,0.29694738]
[1738057625257,0.27251173,675.03,673.53,1.54814601]
[1738057625453,0.27251173,675.03,673.54,0.29693856]
[1738057626357,1.54807714,675.02,673.54,0.29693856]
[1738057626561,0.27251173,675.01,673.54,0.29693856]
[1738057627863,0.27250522,675.0,673.54,0.29693856]
[1738057628060,0.27250522,675.01,673.54,0.29693856]
[1738057628262,0.27250522,675.0,673.54,0.29693856]
[1738057628564,0.27250522,675.01,673.54,0.29693856]
[1738057628765,0.27250522,675.0,673.54,0.29693856]
[1738057628961,0.27250522,675.01,673.54,0.29693856]
[1738057629158,0.27250522,675.0,673.54,0.29693856]
[1738057629563,0.27250522,674.99,673.54,0.29693856]
[1738057629763,0.27250522,675.01,673.54,0.29693856]
[1738057629964,0.27250522,675.0,673.54,0.29693856]
[1738057630160,0.27250522,674.99,673.54,0.29693856]
[1738057630359,0.27250522,674.98,673.54,0.29693856]
[1738057630562,0.27250522,675.01,673.54,0.29693856]
[1738057632868,1.54807714,675.02,673.54,0.29693856]
[1738057633169,0.27251596,675.01,673.54,0.29693856]
[1738057635061,2.65785822,675.02,673.54,0.29693856]
[1738057635266,1.01414832,675.01,673.54,0.29693856]
[1738057635568,0.27252137,675.0,673.54,0.29693856]
[1738057635866,0.27252137,674.99,673.54,0.29693856]
[1738057636066,0.27252137,675.01,673.54,0.29693856]
[1738057636267,0.27252137,675.0,673.54,0.29693856]
[1738057636566,0.27252137,674.99,673.54,0.29693856]
[1738057636762,0.27252137,675.01,673.54,0.29693856]
[1738057637265,1.01389602,675.01,673.54,0.29693856]
[1738057637467,0.56881766,675.0,673.54,0.29693856]
[1738057637663,0.56882205,674.99,673.54,0.29693856]
[1738057637964,1.10978108,674.86,673.65,1.10978108]
[1738057638169,0.27260197,674.85,673.65,1.10978108]
[1738057638669,1.10978108,674.86,673.65,1.10978108]
[1738057638670,1.54835265,674.84,673.65,1.10978108]
[1738057638870,0.27259172,674.83,673.65,1.10978108]
[1738057641371,0.27259172,674.83,673.54,0.29693856]
[1738057641372,1.10978108,674.8,673.54,0.29693856]
[1738057641569,0.27259505,674.79,673.54,0.29693856]
[1738057643372,0.27258942,674.78,673.54,0.29693856]
[1738057643572,0.27258942,674.77,673.54,0.29693856]
[1738057643873,0.27258942,674.76,673.54,0.29693856]
[1738057644072,0.27258942,674.75,673.54,0.29693856]
[1738057644272,0.27258942,674.74,673.54,0.29693856]
[1738057644470,0.27258942,674.83,673.54,0.29693856]
[1738057644672,0.27258942,674.82,673.54,0.29693856]
[1738057644873,0.27258942,674.83,673.54,0.29693856]
[1738057645068,0.27258942,674.82,673.54,0.29693856]
[1738057645273,0.27258942,674.83,673.54,0.29693856]
[1738057645467,0.27258942,674.82,673.54,0.29693856]
[1738057645675,0.27258942,674.83,673.54,0.29693856]
[1738057645875,0.27258942,674.82,673.54,0.29693856]
[1738057646175,0.27258942,674.81,673.54,0.29693856]
[1738057646371,2.65813373,674.84,673.54,0.29693856]
[1738057646372,1.10978108,674.79,673.54,0.29693856]
[1738057646574,0.27258942,674.78,673.54,0.29693856]
[1738057647076,0.27258942,674.77,673.54,0.29693856]
[1738057647276,1.10978108,674.79,673.54,0.29693856]
[1738057647277,0.27258942,674.76,673.54,0.29693856]
[1738057647577,0.27258942,674.75,673.54,0.29693856]
[1738057647878,0.27258942,674.74,673.54,0.29693856]
[1738057648073,0.27258942,674.73,673.54,0.29693856]
[1738057648270,1.10978108,674.79,673.54,0.29693856]
[1738057648477,0.27260565,674.78,673.54,0.29693856]
[1738057648676,0.27260565,674.77,673.54,0.29693856]
[1738057648977,0.27260565,674.76,673.54,0.29693856]
[1738057649176,0.27260565,674.75,673.54,0.29693856]
[1738057649378,1.10978108,674.72,673.54,0.29693856]
[1738057649576,0.27260565,674.71,673.54,0.29693856]
[1738057649975,1.10978108,674.72,673.54,0.29693856]
[1738057650176,0.27260642,674.71,673.54,0.29693856]
[1738057651575,1.10978108,674.72,673.54,0.29693856]
[1738057651775,0.27260999,674.71,673.54,0.29693856]
[1738057653081,0.27260999,674.76,673.54,0.29693856]
[1738057653281,0.27260999,674.75,673.54,0.28718093]
[1738057653480,0.27265308,674.74,673.54,0.28718093]
[1738057653680,0.29641046,674.74,673.54,0.28718093]
[1738057653979,0.27265308,674.73,673.54,0.28718093]
[1738057654181,0.29641925,674.72,673.54,0.28718093]
[1738057654379,0.27265308,674.71,673.54,0.28718093]
[1738057655082,0.27265125,674.7,673.54,0.28718093]
[1738057655274,0.27265125,674.69,673.54,0.28718093]
[1738057655674,0.27265125,674.68,673.54,0.28718093]
[1738057655880,0.27265125,674.67,673.54,0.28718093]
[1738057656080,0.27265125,674.71,673.54,0.28718093]
[1738057656280,0.27265125,674.7,673.54,0.28718093]
[1738057659082,1.54887525,674.69,673.54,0.28718093]
[1738057659278,0.27265125,674.68,673.54,0.28718093]
[1738057663485,1.54887525,674.69,673.54,0.28718093]
[1738057663686,0.27264072,674.68,673.54,0.28718093]
[1738057666985,0.27264439,674.67,673.54,0.28718093]
[1738057667185,0.27264439,674.66,673.54,0.28718093]
[1738057667481,0.27264439,674.65,673.54,0.28718093]
[1738057667686,0.27264439,674.64,673.54,0.28718093]
[1738057667880,1.54887525,674.69,673.54,0.28718093]
[1738057667881,0.27264439,674.63,673.54,0.28718093]
[1738057668085,0.27264439,674.62,673.54,0.28718093]
[1738057668385,0.27264439,674.61,673.54,0.28718093]
[1738057668586,1.54887525,674.69,673.54,0.28718093]
[1738057668886,0.27264482,674.68,673.54,0.28718093]
[1738057670385,0.27266708,674.67,673.54,0.28718093]
[1738057670587,0.27266708,674.66,673.54,0.28718093]
[1738057670786,0.27266708,674.68,673.54,0.28718093]
[1738057670987,0.27266708,674.67,673.54,0.28718093]
[1738057671181,0.27266708,674.66,673.54,0.28718093]
[1738057671386,0.27266708,674.65,673.54,0.28718093]
[1738057671587,0.27266708,674.68,673.54,0.28718093]
[1738057671784,0.27266708,674.67,673.54,0.28718093]
[1738057671988,0.27266708,674.68,673.54,0.28718093]
[1738057672185,0.27266708,674.67,673.54,0.28718093]
[1738057672403,0.56911269,674.66,673.54,0.28718093]
[1738057672592,0.27266708,674.65,673.54,0.28718093]
[1738057672891,0.2964544,674.64,673.54,0.28718093]
[1738057673085,0.27266708,674.63,673.54,0.28718093]
[1738057673285,0.29646319,674.62,673.54,0.28718093]